bitfinex/quotes_BTCUSD_20260311
["timestamp","ask_amount","ask_price","bid_price","bid_amount"]
[1773265480163,0.05076539,70656.0,70640.0,0.00912368]
[1773265481205,0.05083881,70656.0,70640.0,0.00912368]
[1773265481931,0.05083881,70656.0,70642.0,0.01158435]
[1773265482147,0.07094312,70655.0,70642.0,0.01158435]
[1773265483852,0.15318238,70655.0,70640.0,0.07078103]
[1773265484002,0.14170959,70655.0,70641.0,0.01158435]
[1773265485845,0.01147279,70654.0,70642.0,0.07077942]
[1773265486046,0.14170959,70655.0,70640.0,0.07078103]
[1773265486251,0.14170959,70655.0,70641.0,0.01158435]
[1773265486625,0.14170959,70655.0,70641.0,0.01143439]
[1773265487869,0.01147279,70654.0,70639.0,0.0721805]
[1773265488070,0.01147279,70649.0,70639.0,0.0014]
[1773265489126,0.04209475,70650.0,70639.0,0.0014]
[1773265489308,0.07094312,70649.0,70639.0,0.0014]
[1773265489683,0.07094312,70649.0,70639.0,0.07218242]
[1773265490204,0.01141068,70648.0,70639.0,0.07218242]
[1773265490407,0.01141068,70648.0,70639.0,0.0014]
[1773265492035,0.01141068,70648.0,70639.0,0.0016]
[1773265492244,0.01141068,70648.0,70639.0,0.00145005]
[1773265494443,0.01141068,70646.0,70632.0,0.0014]
[1773265495024,0.01141068,70646.0,70632.0,0.01290807]
[1773265495392,0.07094312,70647.0,70627.0,0.00426739]
[1773265495393,0.04209475,70642.0,70627.0,0.00426739]
[1773265495598,0.04209475,70642.0,70598.0,0.0002597]
[1773265495599,0.01141068,70636.0,70613.0,0.0004597]
[1773265495797,0.04209475,70623.0,70613.0,0.0004597]
[1773265496055,0.01141068,70622.0,70613.0,0.0004597]
[1773265496261,0.01141068,70621.0,70613.0,0.0004597]
[1773265496449,0.01141068,70619.0,70609.0,0.0014]
[1773265496663,0.01141068,70619.0,70605.0,0.0014]
[1773265496880,0.07080147,70620.0,70605.0,0.0014]
[1773265496881,0.01141068,70617.0,70605.0,0.0014]
[1773265497634,0.01141068,70617.0,70601.0,0.0014]
[1773265497867,0.07094312,70618.0,70581.0,0.00026]
[1773265497868,0.11231976,70611.0,70581.0,0.00026]
[1773265498089,0.04209475,70615.0,70581.0,0.00026]
[1773265498090,0.01141068,70589.0,70581.0,0.00026]
[1773265498237,0.01105672,70589.0,70581.0,0.00026]
[1773265498440,0.01141068,70587.0,70581.0,0.00026]
[1773265499188,0.01141068,70587.0,70541.0,0.03530164]
[1773265499189,0.01141068,70586.0,70573.0,0.0014]
[1773265499394,0.01141068,70582.0,70573.0,0.00177126]
[1773265499615,0.01141068,70582.0,70565.0,0.07085665]
[1773265499776,0.07083356,70588.0,70565.0,0.00011127]
[1773265499777,0.01141068,70580.0,70565.0,0.00011127]
[1773265499972,0.01141068,70580.0,70566.0,0.0014]
[1773265500174,0.01141068,70580.0,70565.0,0.00011127]
[1773265500175,0.07094312,70579.0,70565.0,0.00011127]
[1773265500495,0.01141068,70576.0,70565.0,0.00011127]
[1773265500854,0.07094312,70575.0,70565.0,0.00011127]
[1773265501199,0.01141068,70574.0,70565.0,0.00011127]
[1773265501789,0.07082855,70593.0,70566.0,0.01150807]
[1773265501990,0.01141068,70598.0,70566.0,0.01150807]
[1773265502167,0.0014,70599.0,70566.0,0.01150807]
[1773265502376,0.07082052,70603.0,70572.0,0.01150807]
[1773265502579,0.07222052,70603.0,70574.0,0.01150807]
[1773265503208,0.07082052,70603.0,70574.0,0.01150807]
[1773265503406,0.07081513,70607.0,70574.0,0.01150807]
[1773265503613,0.01141068,70616.0,70573.0,0.00144]
[1773265503614,0.07080648,70615.0,70575.0,0.432851]
[1773265503803,0.07080648,70615.0,70573.0,0.00144]
[1773265503804,0.07220648,70616.0,70577.0,0.863485]
[1773265503998,0.07220648,70616.0,70580.0,0.01150807]
[1773265504200,0.07220648,70616.0,70584.0,0.01150807]
[1773265504459,0.07080648,70616.0,70588.0,0.01150807]
[1773265505116,0.07080648,70616.0,70593.0,0.0241292]
[1773265505310,0.07080648,70616.0,70594.0,0.01150807]
[1773265505710,0.07080193,70620.0,70594.0,0.01150807]
[1773265506064,0.0708005,70621.0,70594.0,0.01187876]
[1773265506422,0.07079943,70623.0,70595.0,0.07082654]
[1773265506656,0.07079943,70623.0,70596.0,0.01294807]
[1773265507967,0.07079943,70623.0,70596.0,0.01279815]
[1773265508170,0.01141068,70622.0,70596.0,0.01379815]
[1773265508319,0.07079943,70623.0,70596.0,0.01379815]
[1773265508523,0.07079943,70623.0,70598.0,0.01150807]
[1773265509880,0.07079943,70623.0,70598.0,0.01250807]
[1773265510083,0.08221011,70623.0,70598.0,0.01250807]
[1773265510659,0.08221011,70623.0,70599.0,0.07082253]
[1773265510933,0.08221011,70623.0,70600.0,0.01150807]
[1773265511260,0.01141068,70622.0,70600.0,0.01150807]
[1773265511682,0.00035405,70610.0,70600.0,0.01150807]
[1773265513016,0.00035405,70610.0,70601.0,0.07082052]
[1773265513216,0.00035405,70610.0,70602.0,0.01294807]
[1773265514310,0.00035405,70610.0,70602.0,0.01394807]
[1773265515019,0.00035405,70610.0,70602.0,0.07225928]
[1773265515212,0.00035405,70610.0,70603.0,0.01150807]
[1773265516724,0.00035405,70610.0,70603.0,0.01250807]
[1773265516902,0.00035405,70610.0,70603.0,0.01150807]
[1773265517468,0.00035405,70610.0,70603.0,0.01250807]
[1773265518029,0.00035405,70610.0,70603.0,0.01350807]
[1773265519651,0.00035405,70610.0,70603.0,0.01250807]
[1773265519983,0.00035405,70610.0,70603.0,0.01346807]
[1773265520345,0.07080085,70621.0,70603.0,0.01346807]
[1773265521168,0.07080085,70621.0,70603.0,0.01246807]
[1773265522305,0.07080085,70621.0,70603.0,0.01146807]
[1773265522860,0.07080085,70621.0,70603.0,0.07081846]
[1773265523086,0.07080085,70621.0,70604.0,0.01285216]
[1773265524006,0.07102086,70621.0,70604.0,0.01285216]
[1773265526509,0.01345875,70620.0,70604.0,0.01285216]
[1773265526804,0.08426122,70619.0,70604.0,0.01285216]
[1773265527207,0.08397542,70619.0,70604.0,0.01285216]
[1773265533228,0.22573726,70619.0,70604.0,0.01285216]
[1773265533437,0.08419543,70619.0,70604.0,0.01285216]
[1773265533628,0.22573729,70619.0,70604.0,0.01285216]
[1773265534985,0.14154186,70618.0,70604.0,0.01285216]
[1773265535195,0.01345875,70618.0,70604.0,0.01285216]
[1773265535361,0.15500061,70618.0,70604.0,0.01285216]
[1773265536165,0.15500061,70618.0,70604.0,0.01385216]
[1773265536372,0.15500061,70618.0,70604.0,0.01285216]
[1773265536790,0.07080448,70617.0,70604.0,0.01285216]
[1773265536958,0.21234634,70617.0,70604.0,0.01285216]
[1773265537857,0.21234634,70617.0,70603.0,0.0002]
[1773265538055,0.08426323,70617.0,70603.0,0.0002]
[1773265538477,0.22588308,70617.0,70603.0,0.0002]
[1773265542127,0.0132866,70616.0,70603.0,0.0002]
[1773265542717,0.07080648,70615.0,70603.0,0.0002]
[1773265543333,0.07080648,70615.0,70603.0,0.01293885]
[1773265544434,0.0132866,70616.0,70603.0,0.08375732]
[1773265545099,0.08409238,70616.0,70603.0,0.01393885]
[1773265545500,0.08409238,70616.0,70603.0,0.0012]
[1773265546462,0.08409238,70616.0,70603.0,0.0002]
[1773265548408,0.0132866,70618.0,70603.0,0.0002]
[1773265548682,0.15491233,70618.0,70603.0,0.07101825]
[1773265549261,0.0132866,70617.0,70603.0,0.07101825]
[1773265550205,0.0132866,70617.0,70604.0,0.01317735]
[1773265550564,0.15491233,70617.0,70605.0,0.07081651]
[1773265550747,0.0132866,70617.0,70605.0,0.07081651]
[1773265551859,0.0132866,70617.0,70604.0,0.07081706]
[1773265554114,0.15491206,70617.0,70604.0,0.07081706]
[1773265554278,0.0132866,70617.0,70604.0,0.07081706]
[1773265556539,0.0132866,70617.0,70604.0,0.07181706]
[1773265557123,0.0132866,70617.0,70604.0,0.07081706]
[1773265557300,0.15491186,70617.0,70604.0,0.07081706]
[1773265557498,0.0132866,70617.0,70604.0,0.07081706]
[1773265560816,0.0132866,70617.0,70604.0,0.07181706]
[1773265561988,0.01250018,70616.0,70604.0,0.001]
[1773265562149,0.01250018,70616.0,70603.0,0.0002]
[1773265562350,0.01250018,70616.0,70603.0,0.07101844]
[1773265562873,0.01250018,70616.0,70603.0,0.0002]
[1773265563101,0.01250018,70616.0,70603.0,0.07101774]
[1773265564105,0.01250018,70616.0,70603.0,0.07201774]
[1773265564715,0.01250018,70616.0,70604.0,0.001]
[1773265564913,0.01250018,70616.0,70603.0,0.07201774]
[1773265565309,0.01250018,70616.0,70603.0,0.07101774]
[1773265565873,0.01250018,70617.0,70603.0,0.07101774]
[1773265567271,0.01250018,70617.0,70603.0,0.07201774]
[1773265567771,0.15412998,70617.0,70604.0,0.0131495]
[1773265567973,0.00022001,70619.0,70604.0,0.0131495]
[1773265568177,0.14185234,70619.0,70604.0,0.0131495]
[1773265568383,0.00022001,70619.0,70604.0,0.0131495]
[1773265568590,0.01272019,70619.0,70603.0,0.07301774]
[1773265568957,0.01272019,70619.0,70603.0,0.07101774]
[1773265569164,0.01272019,70619.0,70604.0,0.001]
[1773265569346,0.01272019,70619.0,70604.0,0.01413857]
[1773265569544,0.01272019,70619.0,70604.0,0.01313857]
[1773265569747,0.01272019,70619.0,70605.0,0.07081651]
[1773265570544,0.00022001,70619.0,70606.0,0.01312736]
[1773265570747,0.00022001,70619.0,70605.0,0.07081651]
[1773265571083,0.01250018,70618.0,70605.0,0.07081651]
[1773265571283,0.01250018,70618.0,70605.0,0.08393237]
[1773265571534,0.01250018,70618.0,70605.0,0.07081651]
[1773265571682,0.01250018,70618.0,70604.0,0.07181651]
[1773265572272,0.01250018,70618.0,70605.0,0.0014]
[1773265572688,0.01250018,70618.0,70605.0,0.0024]
[1773265572883,0.01250018,70618.0,70605.0,0.0014]
[1773265573099,0.00022001,70619.0,70606.0,0.01309206]
[1773265573473,0.01250018,70618.0,70605.0,0.0014]
[1773265573976,0.01250018,70618.0,70606.0,0.07081551]
[1773265575021,0.00022001,70619.0,70607.0,0.0130571]
[1773265575815,0.01250018,70618.0,70606.0,0.07081551]
[1773265576525,0.01250018,70618.0,70607.0,0.001]
[1773265577032,0.00022001,70619.0,70607.0,0.01402134]
[1773265577396,0.00022001,70619.0,70607.0,0.001]
[1773265577597,0.01250018,70618.0,70606.0,0.07081551]
[1773265578514,0.01250018,70618.0,70608.0,0.0708135]
[1773265579388,0.00022001,70619.0,70608.0,0.0708135]
[1773265579801,0.01250018,70618.0,70608.0,0.0718135]
[1773265580396,0.00022001,70619.0,70608.0,0.0718135]
[1773265580761,0.00022001,70619.0,70609.0,0.01226053]
[1773265580979,0.14160172,70624.0,70609.0,0.01226053]
[1773265580980,0.00022001,70629.0,70610.0,0.01226053]
[1773265581188,0.00022001,70629.0,70608.0,0.0728135]
[1773265581189,0.07077837,70645.0,70621.0,0.02443339]
[1773265581395,0.01321304,70641.0,70623.0,0.01226053]
[1773265581564,0.00503792,70655.0,70627.0,0.01226053]
[1773265581565,0.07077377,70648.0,70627.0,0.01226053]
[1773265581764,0.07077377,70648.0,70626.0,0.04214161]
[1773265581765,0.00070792,70643.0,70629.0,0.01226053]
[1773265581971,0.01321304,70654.0,70630.0,0.01226053]
[1773265582142,0.00022001,70655.0,70641.0,0.01226053]
[1773265582349,0.00022001,70656.0,70645.0,0.01226053]
[1773265582546,0.00022001,70663.0,70645.0,0.0123718]
[1773265582769,0.00022001,70663.0,70650.0,0.05440214]
[1773265583094,0.00022001,70663.0,70651.0,0.0014]
[1773265583256,0.00022001,70663.0,70651.0,0.00104612]
[1773265584560,0.00022001,70663.0,70652.0,0.0707694]
[1773265584986,0.00022001,70663.0,70653.0,0.01226053]
[1773265585370,0.01321304,70662.0,70652.0,0.0707694]
[1773265585573,0.01321304,70662.0,70651.0,0.00104612]
[1773265585900,0.01321304,70660.0,70652.0,0.0014]
[1773265586324,0.01321304,70660.0,70653.0,0.0014]
[1773265586644,0.01321304,70660.0,70654.0,0.0014]
[1773265588534,0.01421304,70660.0,70654.0,0.0014]
[1773265589814,0.01443305,70660.0,70654.0,0.0014]
[1773265591225,0.01343305,70660.0,70655.0,0.0014]
[1773265591616,0.01343305,70660.0,70647.0,0.07077441]
[1773265591617,0.01443305,70660.0,70656.0,0.0014]
[1773265591813,0.01343305,70660.0,70657.0,0.0014]
[1773265591985,0.01343305,70660.0,70658.0,0.0014]
[1773265592135,0.01443305,70660.0,70658.0,0.00134143]
[1773265592341,0.01343305,70660.0,70658.0,0.00134143]
[1773265592775,0.01443305,70660.0,70658.0,0.00134143]
[1773265592975,0.01343305,70660.0,70658.0,0.00134143]
[1773265593376,0.01321304,70659.0,70658.0,0.00134143]
[1773265598240,0.01421304,70659.0,70658.0,0.00134143]
[1773265598527,0.01321304,70659.0,70656.0,0.0014]
[1773265598989,0.001,70659.0,70656.0,0.0014]
[1773265599204,0.01321304,70658.0,70656.0,0.0014]
[1773265600071,0.01321304,70658.0,70654.0,0.0014]
[1773265600473,0.01321304,70658.0,70653.0,0.0014]
[1773265600894,0.01321304,70658.0,70650.0,0.0002]
[1773265601105,0.01321304,70658.0,70653.0,0.0014]
[1773265601845,0.01321304,70658.0,70650.0,0.0002]
[1773265602048,0.01321304,70658.0,70651.0,0.0014]
[1773265607734,0.01321304,70658.0,70651.0,0.0016]
[1773265609477,0.01284408,70658.0,70646.0,0.0522536]
[1773265609771,0.01284408,70656.0,70641.0,0.0014]
[1773265609969,0.01295533,70656.0,70641.0,0.0014]
[1773265610728,0.01328702,70654.0,70641.0,0.0014]
[1773265611359,0.01328702,70654.0,70628.0,0.00035388]
[1773265611624,0.01328702,70654.0,70637.0,0.0014]
[1773265612247,0.01428702,70654.0,70637.0,0.0014]
[1773265612442,0.01328702,70654.0,70637.0,0.0014]
[1773265612665,0.0707684,70653.0,70637.0,0.0014]
[1773265612858,0.01328702,70652.0,70637.0,0.0014]
[1773265613673,0.01328702,70649.0,70637.0,0.0014]
[1773265614794,0.01328702,70647.0,70637.0,0.0014]
[1773265616237,0.01428702,70647.0,70637.0,0.0014]
[1773265616988,0.01328702,70645.0,70637.0,0.0014]
[1773265617389,0.01328702,70645.0,70637.0,0.0016]
[1773265618445,0.01428702,70645.0,70637.0,0.0016]
[1773265618618,0.01328702,70645.0,70637.0,0.0016]
[1773265619065,0.01328702,70643.0,70637.0,0.0016]
[1773265620970,0.07077942,70642.0,70637.0,0.0016]
[1773265621182,0.01328702,70641.0,70637.0,0.0016]
[1773265622521,0.01328702,70640.0,70637.0,0.0016]
[1773265623865,0.00481791,70639.0,70637.0,0.0016]
[1773265625476,0.01328702,70640.0,70637.0,0.0016]
[1773265625680,0.01810493,70639.0,70637.0,0.0016]
[1773265629132,0.00022001,70658.0,70637.0,0.0016]
[1773265629133,0.000284,70657.0,70638.0,0.01362127]
[1773265629335,0.07104911,70657.0,70638.0,0.01362127]
[1773265629540,0.00022001,70658.0,70638.0,0.01362127]
[1773265629746,0.00022001,70658.0,70641.0,0.01362127]
[1773265629747,0.12154882,70657.0,70641.0,0.01362127]
[1773265629925,0.08154882,70657.0,70641.0,0.01362127]
[1773265630323,0.07076539,70656.0,70641.0,0.01362127]
[1773265630767,0.15231381,70657.0,70641.0,0.07078032]
[1773265630972,0.15231381,70657.0,70641.0,0.01362127]
[1773265631176,0.15231326,70657.0,70641.0,0.01362127]
[1773265631390,0.00049971,70673.0,70648.0,0.01362127]
[1773265631546,0.00049971,70673.0,70647.0,0.04208378]
[1773265631547,0.03592326,70676.0,70661.0,0.01362127]
[1773265631748,0.03592326,70676.0,70663.0,0.01362127]
[1773265631955,0.14639843,70677.0,70665.0,0.01362127]
[1773265632159,0.14639843,70677.0,70667.0,0.01362127]
[1773265632160,0.0756538,70677.0,70667.0,0.01362127]
[1773265632364,0.14639856,70677.0,70669.0,0.01362127]
[1773265632695,0.14639856,70677.0,70659.0,0.07076184]
[1773265632696,0.14639856,70677.0,70671.0,0.01362127]
[1773265632901,0.14639856,70677.0,70672.0,0.01502127]
[1773265633220,0.14639856,70677.0,70673.0,0.01502127]
[1773265633378,0.0756538,70677.0,70673.0,0.01502127]
[1773265633785,0.14639827,70677.0,70673.0,0.01502127]
[1773265634602,0.14639827,70677.0,70673.0,0.0014]
[1773265638516,0.14661828,70677.0,70673.0,0.0014]
[1773265639194,0.14661828,70677.0,70661.0,0.01362127]
[1773265639397,0.14661828,70677.0,70660.0,0.07076128]
[1773265639398,0.14661828,70677.0,70663.0,0.01362127]
[1773265652343,0.14661828,70677.0,70663.0,0.01382127]
[1773265653331,0.14761828,70677.0,70663.0,0.01382127]
[1773265656741,0.14661828,70677.0,70663.0,0.01382127]
[1773265657042,0.14761828,70677.0,70663.0,0.01382127]
[1773265657250,0.14661828,70677.0,70663.0,0.01382127]
[1773265657394,0.14761828,70677.0,70663.0,0.01382127]
[1773265657740,0.14661828,70677.0,70663.0,0.01382127]
[1773265658113,0.14761828,70677.0,70663.0,0.01382127]
[1773265659396,0.14661828,70677.0,70663.0,0.01382127]
[1773265659604,0.14761828,70677.0,70663.0,0.01382127]
[1773265660415,0.14661828,70677.0,70663.0,0.01382127]
[1773265660794,0.14761828,70677.0,70663.0,0.01382127]
[1773265662446,0.14661828,70677.0,70663.0,0.01382127]
[1773265662738,0.14761828,70677.0,70663.0,0.01382127]
[1773265663517,0.14661828,70677.0,70663.0,0.01382127]
[1773265663941,0.14761828,70677.0,70663.0,0.01382127]
[1773265664094,0.14661828,70677.0,70663.0,0.01382127]
[1773265664496,0.14761828,70677.0,70663.0,0.01382127]
[1773265665766,0.14661828,70677.0,70663.0,0.01382127]
[1773265666058,0.14761828,70677.0,70663.0,0.01382127]
[1773265666253,0.14661828,70677.0,70663.0,0.01382127]
[1773265666621,0.14761828,70677.0,70663.0,0.01382127]
[1773265667029,0.015034,70676.0,70663.0,0.0002]
[1773265668720,0.07074637,70675.0,70663.0,0.0002]
[1773265669352,0.0857797,70676.0,70663.0,0.0002]
[1773265669886,0.0857797,70676.0,70663.0,0.07095807]
[1773265670234,0.0857797,70676.0,70663.0,0.0002]
[1773265670852,0.0857797,70676.0,70663.0,0.01461834]
[1773265672727,0.015034,70676.0,70663.0,0.0853767]
[1773265673168,0.08577965,70676.0,70663.0,0.0853767]
[1773265673383,0.07074565,70676.0,70663.0,0.08537629]
[1773265673587,0.14661833,70677.0,70663.0,0.08537629]
[1773265675545,0.14661833,70677.0,70663.0,0.01461834]
[1773265675770,0.14761833,70677.0,70663.0,0.01461834]
[1773265675969,0.16276014,70677.0,70663.0,0.01461834]
[1773265676557,0.01514181,70676.0,70663.0,0.0002]
[1773265677296,0.08588812,70676.0,70663.0,0.0002]
[1773265680001,0.08610813,70676.0,70663.0,0.0002]
[1773265683964,0.07096632,70676.0,70663.0,0.01461834]
[1773265685039,0.01514181,70675.0,70663.0,0.0002]
[1773265685922,0.08588867,70675.0,70663.0,0.0002]
[1773265688029,0.01514181,70675.0,70663.0,0.0002]
[1773265688229,0.08588825,70675.0,70663.0,0.0002]
[1773265700164,0.01425504,70674.0,70663.0,0.0002]
[1773265700676,0.07074644,70675.0,70663.0,0.0002]
[1773265700867,0.07096571,70676.0,70663.0,0.08465553]
[1773265701075,0.07096571,70676.0,70663.0,0.01389799]
[1773265702576,0.07096571,70676.0,70663.0,0.0002]
[1773265702776,0.08522075,70676.0,70663.0,0.0002]
[1773265703001,0.01425504,70675.0,70663.0,0.0002]
[1773265704399,0.08500168,70675.0,70663.0,0.0002]
[1773265705490,0.01425504,70674.0,70663.0,0.0002]
[1773265705889,0.07074664,70675.0,70663.0,0.0002]
[1773265708705,0.07074664,70675.0,70663.0,0.01389799]
[1773265710960,0.07074664,70675.0,70663.0,0.0002]
[1773265711166,0.08522075,70676.0,70663.0,0.0002]
[1773265713006,0.01425504,70675.0,70663.0,0.0002]
[1773265713903,0.01425504,70674.0,70663.0,0.0002]
[1773265716431,0.07074744,70674.0,70663.0,0.0002]
[1773265717489,0.01425504,70674.0,70663.0,0.0002]
[1773265718876,0.01425504,70674.0,70664.0,0.0014]
[1773265719629,0.01425504,70673.0,70664.0,0.0014]
[1773265732609,0.07074659,70675.0,70664.0,0.01527238]
[1773265740547,0.07074659,70675.0,70664.0,0.01547238]
[1773265745279,0.01300229,70674.0,70664.0,0.0016]
[1773265745775,0.07074659,70675.0,70664.0,0.0016]
[1773265746182,0.07074659,70675.0,70665.0,0.01331907]
[1773265747973,0.07074659,70675.0,70664.0,0.0016]
[1773265748814,0.01300229,70673.0,70665.0,0.0012]
[1773265749032,0.01300229,70673.0,70666.0,0.0014]
[1773265749242,0.01300229,70673.0,70667.0,0.0014]
[1773265769699,0.01300229,70673.0,70667.0,0.0016]
[1773265769922,0.0132223,70673.0,70667.0,0.0016]
[1773265775423,0.00022001,70673.0,70667.0,0.0016]
[1773265780690,0.00022001,70684.0,70669.0,0.01185716]
[1773265780897,0.11341899,70688.0,70671.0,0.01185716]
[1773265780898,0.00022001,70688.0,70671.0,0.01185716]
[1773265781090,0.00059132,70688.0,70679.0,0.01185716]
[1773265781344,0.00059132,70688.0,70681.0,0.01185716]
[1773265782021,0.00059132,70688.0,70683.0,0.01182944]
[1773265782251,0.0001569,70692.0,70683.0,0.01182944]
[1773265785532,0.0001569,70692.0,70684.0,0.01196386]
[1773265785734,0.0710788,70698.0,70684.0,0.01196386]
[1773265785735,0.00035361,70698.0,70684.0,0.01196386]
[1773265786050,0.00035361,70698.0,70683.0,0.07073831]
[1773265786051,0.01124,70700.0,70689.0,0.01192253]
[1773265786257,0.01124,70700.0,70691.0,0.01192253]
[1773265787094,0.00022001,70692.0,70691.0,0.01192253]
[1773265787246,0.00022001,70692.0,70691.0,0.08265289]
[1773265787449,0.01146001,70700.0,70691.0,0.07073036]
[1773265787772,0.00022001,70707.0,70692.0,0.0118825]
[1773265787972,0.00033134,70707.0,70692.0,0.0118825]
[1773265789260,0.00033134,70707.0,70693.0,0.07072836]
[1773265789479,0.00033134,70707.0,70694.0,0.01189174]
[1773265791290,0.00033134,70707.0,70695.0,0.07072635]
[1773265791522,0.00033134,70707.0,70696.0,0.01180767]
[1773265791837,0.00033134,70707.0,70698.0,0.01176685]
[1773265793359,0.00033134,70707.0,70698.0,0.08248937]
[1773265795565,0.00033134,70707.0,70698.0,0.08236765]
[1773265796751,0.00033134,70707.0,70698.0,0.07072252]
[1773265796932,0.00033134,70707.0,70697.0,0.07212421]
[1773265797131,0.00033134,70707.0,70697.0,0.08368878]
[1773265797346,0.00033134,70707.0,70697.0,0.07212421]
[1773265799411,0.00033134,70707.0,70698.0,0.00040367]
[1773265801023,0.00033134,70707.0,70698.0,0.07112668]
[1773265801195,0.07070048,70721.0,70699.0,0.01140485]
[1773265801545,0.07070048,70721.0,70710.0,0.04203158]
[1773265801546,0.01230775,70721.0,70710.0,0.04203158]
[1773265801732,0.000173,70721.0,70712.0,0.01136521]
[1773265802484,0.00037111,70722.0,70712.0,0.01136521]
[1773265802485,0.00054411,70722.0,70713.0,0.07070835]
[1773265802739,0.00054411,70722.0,70714.0,0.01136521]
[1773265803033,0.0828246,70732.0,70714.0,0.01136521]
[1773265803034,0.00904585,70732.0,70714.0,0.01136521]
[1773265803332,0.00904585,70732.0,70720.0,0.04203158]
[1773265803508,0.00904585,70732.0,70721.0,0.0014]
[1773265803893,0.00022001,70722.0,70721.0,0.0014]
[1773265804393,0.00022001,70722.0,70721.0,0.0015665]
[1773265804859,0.00022001,70722.0,70721.0,0.01421378]
[1773265805031,0.00022001,70722.0,70721.0,0.0015665]
[1773265805252,4.358e-05,70722.0,70721.0,0.0015665]
[1773265806152,4.358e-05,70722.0,70721.0,0.00126725]
[1773265808935,4.358e-05,70722.0,70721.0,0.01391453]
[1773265809167,4.358e-05,70722.0,70693.0,0.16972]
[1773265809168,0.01213475,70721.0,70708.0,0.07095125]
[1773265809368,0.01213475,70721.0,70709.0,0.0014]
[1773265809571,0.01213475,70719.0,70710.0,0.0014]
[1773265809737,0.01224606,70719.0,70710.0,0.0014]
[1773265810072,0.01224606,70719.0,70705.0,0.03351589]
[1773265810281,0.00011131,70719.0,70711.0,0.0014]
[1773265810639,0.00011131,70719.0,70710.0,0.0014]
[1773265811159,0.00011131,70719.0,70712.0,0.0002]
[1773265811891,0.00011131,70719.0,70713.0,0.0014]
[1773265812103,0.00011131,70719.0,70706.0,0.01264728]
[1773265812104,0.01285803,70718.0,70695.0,0.0002389]
[1773265812302,0.01285803,70718.0,70687.0,0.07073392]
[1773265812504,0.01213475,70716.0,70688.0,0.0014]
[1773265812732,0.01285803,70716.0,70689.0,0.0014]
[1773265812868,0.07070635,70715.0,70691.0,0.07073036]
[1773265813062,0.01213475,70714.0,70691.0,0.07073036]
[1773265813260,0.01213475,70714.0,70691.0,0.07213036]
[1773265813705,0.07,70709.0,70691.0,0.07073036]
[1773265814020,0.01353475,70708.0,70692.0,0.0014]
[1773265814249,0.01353475,70708.0,70691.0,0.07073036]
[1773265814389,0.01353475,70708.0,70693.0,0.0014]
[1773265814822,0.01213475,70708.0,70694.0,0.17410297]
[1773265815233,0.01213475,70708.0,70695.0,0.07072635]
[1773265815547,0.01213475,70708.0,70695.0,0.07212635]
[1773265818934,0.01213475,70708.0,70695.0,0.07232635]
[1773265819255,0.01213475,70708.0,70696.0,0.0002389]
[1773265819609,0.01213475,70708.0,70696.0,0.07096403]
[1773265822189,0.01213475,70708.0,70696.0,0.07072513]
[1773265822395,0.01370052,70706.0,70696.0,0.07072513]
[1773265822706,0.01370052,70706.0,70697.0,0.17294187]
[1773265823921,0.00072328,70705.0,70697.0,0.17294187]
[1773265824098,0.0144238,70705.0,70697.0,0.17294187]
[1773265826106,0.0144238,70705.0,70697.0,0.17314187]
[1773265836974,0.0144238,70705.0,70697.0,0.17290297]
[1773265838489,0.0144238,70705.0,70697.0,0.0002]
[1773265843098,0.0144238,70705.0,70698.0,0.17294187]
[1773265846389,0.00022001,70708.0,70698.0,0.18624913]
[1773265846591,0.00022001,70708.0,70698.0,0.17294187]
[1773265846790,0.01231477,70707.0,70698.0,0.17294187]
[1773265848756,0.00022001,70708.0,70698.0,0.18624913]
[1773265848957,0.07093372,70708.0,70698.0,0.18624913]
[1773265849135,0.00022001,70708.0,70698.0,0.17290187]
[1773265849344,0.01231477,70707.0,70698.0,0.17290187]
[1773265849699,0.01231477,70707.0,70698.0,0.0001989]
[1773265850510,0.01231477,70707.0,70698.0,0.0015989]
[1773265851360,0.01231477,70707.0,70698.0,0.0001989]
[1773265851563,0.01231477,70707.0,70698.0,0.0015989]
[1773265851777,0.01254579,70706.0,70699.0,0.17270297]
[1773265856778,0.01254579,70706.0,70700.0,0.0001989]
[1773265860702,0.01254579,70706.0,70699.0,0.17270297]
[1773265860935,0.00022001,70707.0,70699.0,0.17270297]
[1773265861843,0.01254579,70706.0,70699.0,0.17270297]
[1773265866408,0.00022001,70707.0,70699.0,0.17270297]
[1773265866926,0.07093532,70707.0,70699.0,0.17270297]
[1773265867057,0.00022001,70707.0,70699.0,0.17270297]
[1773265868445,0.00022001,70707.0,70698.0,0.0002]
[1773265868639,0.01254579,70706.0,70699.0,0.17270297]
[1773265873901,0.00022001,70707.0,70699.0,0.17270297]
[1773265875440,0.01254579,70706.0,70699.0,0.17270297]
[1773265879374,0.00022001,70707.0,70699.0,0.17270297]
[1773265879865,0.00022001,70707.0,70698.0,0.0002]
[1773265880038,0.00022001,70707.0,70699.0,0.17270297]
[1773265880828,0.00022001,70707.0,70699.0,0.17290297]
[1773265882402,0.14285483,70711.0,70699.0,0.25564424]
[1773265882603,0.21356519,70711.0,70699.0,0.18492208]
[1773265882808,0.07211036,70711.0,70699.0,0.18492208]
[1773265884609,0.07311036,70711.0,70699.0,0.18492208]
[1773265884811,0.07211036,70711.0,70699.0,0.18492208]
[1773265885317,0.07311036,70711.0,70699.0,0.18492208]
[1773265885532,0.07211036,70711.0,70699.0,0.18492208]
[1773265885753,0.07311036,70711.0,70699.0,0.18492208]
[1773265886058,0.07211036,70711.0,70699.0,0.18492208]
[1773265886402,0.07311036,70711.0,70699.0,0.18492208]
[1773265888131,0.07211036,70711.0,70699.0,0.18492208]
[1773265888418,0.07311036,70711.0,70699.0,0.18492208]
[1773265888776,0.07211036,70711.0,70699.0,0.18492208]
[1773265888983,0.07333037,70711.0,70699.0,0.18492208]
[1773265889178,0.07233037,70711.0,70699.0,0.18492208]
[1773265889683,0.07333037,70711.0,70699.0,0.17290297]
[1773265889869,0.07233037,70711.0,70699.0,0.17290297]
[1773265891335,0.07333037,70711.0,70699.0,0.17290297]
[1773265891565,0.07233037,70711.0,70699.0,0.17290297]
[1773265891778,0.07333037,70711.0,70699.0,0.17290297]
[1773265894193,0.07233037,70711.0,70699.0,0.17290297]
[1773265894602,0.00262001,70711.0,70699.0,0.17290297]
[1773265894800,0.00162001,70711.0,70699.0,0.17290297]
[1773265895209,0.07233071,70711.0,70699.0,0.17290297]
[1773265895667,0.07093071,70711.0,70699.0,0.17290297]
[1773265895870,0.07093071,70711.0,70700.0,0.01201911]
[1773265896105,0.07071035,70712.0,70700.0,0.01201911]
[1773265897138,0.07070893,70713.0,70700.0,0.01201911]
[1773265897912,0.00022001,70711.0,70700.0,0.01201911]
[1773265899334,0.07093062,70711.0,70700.0,0.01201911]
[1773265899737,0.00022001,70711.0,70700.0,0.01201911]
[1773265901242,0.00022001,70711.0,70701.0,0.01200089]
[1773265901479,0.18351797,70727.0,70702.0,0.01200089]
[1773265901680,0.18351797,70727.0,70700.0,0.11274596]